{"text_format":"1","workbook":"xlsx","n_sheets":1,"sheets":["лист1"],"not_rendered":{"charts":0,"images":0,"macros":0,"external_links":0,"defined_names":0,"comments":0,"pivot_tables":0},"unopened":[],"bounds":{"document_bytes":16777216,"sheet_cells":100000,"rows_first":2000,"rows_last":500,"rows_between":2000,"halvings":0,"cell_chars":16384,"cell_head_chars":4096},"cells_cut":0,"cells_raw":0,"read":"whole","date_system":"1900"}

{"sheet":"лист1","index":0,"n_rows":57,"n_cols":8,"rows_kept":57,"cut":false,"hidden":false,"merged":[[4,7,5,7],[50,7,51,7],[53,7,54,7],[57,0,57,4],[0,7,1,7],[2,0,2,7],[4,0,5,0],[4,1,5,1],[4,2,5,2],[4,3,4,5],[4,6,5,6],[58,0,58,6],[37,0,38,0],[37,1,38,1],[37,2,38,2],[37,3,38,3],[37,4,38,4],[37,5,38,5],[37,6,38,6]]}
[]
[]
["Свод изменений к проекту решения   Совета народных депутатов \"О внесении изменений в решение \"О бюджете муниципального образования   Красносельское    на 2017 год\""]
[null,null,null,null,null,null,null,"тыс. рублей"]
["Показатели","Бюджетные назначения на 1 января 2017 г. (Решение СНД №29 от 21.12.2016г.)","Бюджетные назначения на  28 июня 2017г.   (Решение СНД №25 от 28.06.2017г.)","Изменения, предусмотренные проектом решения",null,null,"Бюджетные назначения с учетом проекта решения","Примечание"]
[null,null,null,"Увеличение  (+)","Уменьшение  (-)","Всего"]
[1,2,3,4,5,6,7,8]
["ДОХОДЫ БЮДЖЕТА",{"$f":"B23","v":28386.2},{"$f":"C9+C22","v":28923.9},{"$f":"D9+D22","v":1533.2},{"$f":"E9+E22","v":0},{"$f":"F9+F22","v":1533.2},{"$f":"G9+G22","v":30457.100000000002}]
["НАЛОГОВЫЕ И НЕНАЛОГОВЫЕ ДОХОДЫ",17308,{"$f":"C10+C12+C13+C14+C16+C17","v":17308},{"$f":"D10+D12+D13+D14+D16+D17","v":1262.4000000000001},{"$f":"E10","v":0},{"$f":"F10+F12+F13+F14+F16+F17","v":1262.4000000000001},{"$f":"G10+G12+G13+G14+G16+G17","v":18570.400000000001}]
["Налог на доходы физических лиц",1400,1400,null,0,{"$f":"D10-E10","v":0},1400]
["Единый налог на вмененный доход"]
["Единый сельскохозяйственный налог",14,14,null,null,null,14]
["Налог на имущество физических лиц",640,640,null,null,null,640]
["Земельный налог",14479,14479,null,null,null,14479]
["Налог на добычу полезных ископаемых",null,null,null,null,null,{"$f":"C15+F15","v":0}]
["Прочие налоговые доходы",10,10,null,null,null,10]
["Неналоговые доходы, из них",765,765,{"$f":"D18+D19+D20","v":1262.4000000000001},null,{"$f":"F18+F19+F20","v":1262.4000000000001},{"$f":"G18+G19+G20","v":2027.4}]
["доходы от использования имущества, находящегося в государственной и муниципальной собственности",750,750,null,null,null,750]
["штрафы, санкции, возмещение ущерба",15,15,null,null,null,15]
["доходы от продажи материальных и нематериальных активов",null,null,1262.4000000000001,null,1262.4000000000001,1262.4000000000001,"153,7 тыс.руб. - Доходы от продажи транспортного средства                                                                                                               1108,7 тыс.руб. - Доходы от продажи земельных участков, находящихся в собственности МО Красносельское"]
["Средства от возврата остатков субсидий, субвенций и иных межбюджетных трансфертов"]
["БЕЗВОЗМЕЗДНЫЕ ПОСТУПЛЕНИЯ",11078.2,11615.9,270.8,0,{"$f":"D22-E22","v":270.8},11886.7,"50,0тыс.руб.- Безвозмездные поступления из областного бюджета. Уведомление ДФБНП администрации Владимирской области №592037_19 от 26.06.2017г.                                                                            220,8тыс.руб.-Добровольные пожертвования на объекты благоустройства"]
["ИТОГО ДОХОДОВ",{"$f":"B22+B9","v":28386.2},28923.9,1533.2,0,1533.2,30457.100000000002]
[]
["РАСХОДЫ БЮДЖЕТА",{"$f":"B26+B29+B40","v":28386.200000000004},{"$f":"C26+C29+C40","v":28923.9},{"$f":"D26+D29+D40","v":936},{"$f":"E26+E29+E40","v":31.5},904.5,{"$f":"G26+G29+G40","v":29828.400000000001}]
["Раздел I. Социально-значимые расходы",{"$f":"B27+B28","v":7463.9},{"$f":"C27+C28","v":7429.9},null,null,null,{"$f":"G27+G28","v":7429.9}]
["Заработная плата и начисления на нее (ВР 111,119,121,129)",7413.9,7379.9,null,null,null,7379.9]
["Социальное обеспечение (ВР 300)",50,50,null,null,null,50]
["Раздел II. Первоочередные расходы",{"$f":"B30+B31+B32+B35+B36+B38","v":20922.300000000003},{"$f":"C30+C31+C32+C35+C36+C38","v":21494},{"$f":"D30+D31+D32+D35+D36+D38","v":936},{"$f":"E30+E31+E32+E35+E36+E38","v":31.5},null,{"$f":"G30+G31+G32+G35+G36+G38","v":22398.5}]
["Расходы на обслуживание муниципального долга (ВР 730)"]
["Межбюджетные трансферты общего характера бюджетам бюджетной системы Российской Федерации (ВР 500)",9643.7000000000007,9823.1,230,31.5,198.5,10021.6,"230,0тыс.руб.на обеспечение деятельности ДК по переданным полномочиям МО Юрьев-Польский район                                                                                            31,5тыс.руб.- уменьшение социальной выплаты на приобретение жилья по переданным полномочиям МО Юрьев-Польский район. Постановление администрации МО Юрьев-Польский район №761 от 20.06.2017г. "]
["Расходы на первоочередные нужды, из них:                   "]
["      прочие выплаты по заработной плате (ВР 112,122)"]
["  иные выплаты персоналу, за исключением фонда оплаты труда (ВР 142)"]
["Иные закупки товаров, работ и услуг для обеспечения муниципальных нужд (ВР 240)",10758.6,11142.4,706,null,null,11848.4,"100,0тыс.руб.- расходы на расчистку водоема и береговой полосы с.Федосьино                                                                                            200,0тыс.руб.-увеличены расходы на вывоз мусора с мест несанкционированного размещения отходов                                                                                          200,2тыс.руб- увеличены расходы на спилку деревьев и обкос травы                                                                                             200,0тыс.руб.- увеличены расходы на ремонт уличного освещения                                                                                                      5,8тыс.руб.- увеличены расходы на строительство детской площадки с.Ополье"]
["Иные бюджетные ассигнования (ВР 810,851,852,853)",290,298.5,null,null,null,298.5]
["Расходы на прочие нужды, из них:"]
["Предоставление субсидий бюджетным, автономным учреждениям и иным некоммерческим организациям (ВР 600)",230,230,null,null,null,230]
[]
["Раздел III. Расходы"]
["Увеличение стоимости основных средств  ВР 400)                                                                                                                                                  "]
["Другие расходы ВР 113,123,831,870)"]
["ИТОГО РАСХОДОВ",{"$f":"B25","v":28386.200000000004},{"$f":"C25","v":28923.9},null,null,null,25588.6]
["Справочно: на 01.07.2017г. Штатная численность составила 5 ед., фактическая - 5ед."]
["Расходы на выплату заработной платы с начислениями работникам органов местного самоуправления",2259.8000000000002,2259.8000000000002,null,null,null,2259.8000000000002]
[]
["Профицит (+)/дефицит (-)",{"$f":"B8-B25","v":0},{"$f":"C8-C25","v":0},null,null,null,{"$f":"G8-G25","v":628.70000000000073}]
["ИСТОЧНИКИ ФИНАНСИРОВАНИЯ ДЕФИЦИТА БЮДЖЕТА"]
["Итого источников",null,null,null,null,null,-628.70000000000005]
["Изменение остатков средств бюджетов",null,null,null,null,null,-628.70000000000005]
["Разница между полученными и погашенными кредитами  от других бюджетов"]
[" - получение бюджетных кредитов"]
[" - погашение бюджетных кредитов"]
["Разница меду полученными и погашенными кредитами от кредитных организаций"]
[" - получение кредитов от кредитных организаций"]
[" - погашение кредитов от кредитных организаций"]
["Иные источники"]